bitfinex/quotes_ETHUSD_20250404
["timestamp","ask_amount","ask_price","bid_price","bid_amount"]
[1743731872929,0.8145,1787.6,1787.0,5.59593]
[1743731873132,5.59437,1787.6,1786.8,5.59657]
[1743731873332,11.33669316,1787.9,1786.1,0.7946]
[1743731873635,0.8145,1788.0,1786.9,0.10786947]
[1743731873781,0.8145,1788.0,1787.0,5.59588]
[1743731873982,0.8145,1788.7,1787.0,0.92366314]
[1743731874229,0.05,1788.9,1788.0,0.7946]
[1743731874517,54.93,1789.9,1789.5,5.58811]
[1743731874518,0.8145,1789.7,1789.5,5.58811]
[1743731874679,6.40224,1789.7,1789.0,5.58946]
[1743731874878,5.59022,1788.9,1788.2,5.59203]
[1743731875114,0.8145,1788.8,1787.3,3.0]
[1743731875320,0.8145,1788.8,1788.4,5.59148]
[1743731875516,5.59065,1788.7,1787.6,5.594]
[1743731875715,0.55,1788.1,1785.6,0.1]
[1743731875882,0.8204,1787.3,1785.5,0.01510246]
[1743731876083,5.59949,1785.9,1785.5,0.01510246]
[1743731876315,6.42075,1785.6,1785.5,0.01510246]
[1743731876524,6.42075,1785.6,1784.1,0.05]
[1743731876525,0.55,1785.5,1785.1,5.94e-06]
[1743731876728,5.60161,1785.2,1785.1,5.94e-06]
[1743731876894,0.8204,1785.6,1785.1,5.94e-06]
[1743731877221,0.7704,1785.6,1785.1,5.94e-06]
[1743731877406,5.60161,1785.2,1785.1,5.94e-06]
[1743731877606,5.60161,1785.2,1784.1,0.05]
[1743731877607,73.61861,1785.2,1784.1,0.05]
[1743731877917,3.0,1785.0,1784.1,0.05]
[1743731878216,1.120297,1785.2,1784.3,5.60426]
[1743731878439,1.120297,1785.2,1784.5,5.60377]
[1743731878440,3.0,1785.2,1784.5,5.60377]
[1743731878732,5.59604,1787.0,1786.4,5.5976]
[1743731878940,49.24178,1787.7,1786.0,5.59884]
[1743731878941,5.59709,1786.7,1786.0,5.59884]
[1743731879126,5.59659,1786.9,1786.2,5.5983]
[1743731879301,5.59874,1786.2,1785.5,5.60047]
[1743731879513,5.59874,1786.2,1783.8,0.7899]
[1743731879514,12.213,1786.1,1783.8,0.7899]
[1743731879797,13.11367327,1786.2,1784.8,5.60263]
[1743731879798,3.0,1785.9,1784.8,5.60263]
[1743731879994,3.0,1785.9,1783.8,0.7899]
[1743731879995,1.3704,1785.7,1783.8,0.7899]
[1743731880209,0.7249251,1786.6,1783.6,0.05602834]
[1743731880210,0.8204,1786.3,1784.3,5.60443]
[1743731880422,0.8704,1786.9,1785.7,5.60004]
[1743731880626,0.05,1786.9,1786.8,5.59659]
[1743731880799,0.8204,1787.7,1787.4,5.59453]
[1743731881000,0.05,1787.9,1787.8,5.59346]
[1743731881325,1e-05,1787.9,1787.8,6.30774643]
[1743731881524,5.58628,1790.1,1789.4,5.58846]
[1743731881733,5.58834,1789.5,1788.6,5.59096]
[1743731881940,0.8204,1790.1,1789.8,5.58721]
[1743731882438,2.040617,1789.8,1789.0,5.58952]
[1743731882639,12.776,1790.0,1788.7,0.559096]
[1743731882792,5.58424,1790.8,1789.7,5.58727]
[1743731882793,0.8204,1790.6,1789.7,5.58727]
[1743731882987,0.8204,1790.6,1788.7,0.559096]
[1743731882988,5.58607,1790.2,1788.7,0.559096]
[1743731883224,0.8204,1789.6,1789.1,5.58916]
[1743731883398,5.58561,1790.4,1787.9,0.1]
[1743731883399,1.69314514,1790.6,1788.6,0.55]
[1743731883600,5.58596,1790.3,1788.9,49.26077]
[1743731883822,5.58349,1791.0,1788.9,49.26077]
[1743731883823,5.58377,1791.0,1790.2,5.58576]
[1743731883996,5.58449,1790.7,1789.9,5.58673]
[1743731884198,5.58449,1790.7,1789.1,6.13917]
[1743731884199,0.558449,1790.7,1789.2,0.7899]
[1743731884398,5.58489,1790.6,1789.9,5.5867]
[1743731884597,5.58472,1790.6,1789.7,11.17461]
[1743731884812,0.558449,1790.7,1789.7,5.58734]
[1743731885009,5.58552,1790.4,1789.7,5.58751]
[1743731885226,3.0,1790.4,1789.4,5.58829]
[1743731885418,5.58647,1790.1,1789.2,0.7899]
[1743731885615,5.58647,1790.1,1789.3,5.58877]
[1743731885834,5.58637,1790.1,1789.1,5.5894]
[1743731886032,5.58693,1789.9,1789.3,11.17715]
[1743731886201,3.0,1790.2,1789.1,0.55894]
[1743731886202,5.58566,1790.3,1789.6,5.5876]
[1743731886398,13.122,1790.5,1789.2,5.58909]
[1743731886399,5.58617,1790.2,1789.2,5.58909]
[1743731886603,5.58617,1790.2,1789.5,5.58795]
[1743731886902,5.58617,1790.2,1789.1,6.20407594]
[1743731886903,5.58684,1790.0,1789.1,0.55894]
[1743731887099,5.58441,1790.7,1789.1,5.5894]
[1743731887326,3.0,1790.5,1789.2,5.58891]
[1743731887538,0.8204,1790.1,1789.5,5.58797]
[1743731887846,13.9164,1790.6,1790.0,5.58636]
[1743731888040,5.58556,1790.4,1789.8,5.58715]
[1743731888348,0.558556,1790.3,1789.3,5.58853]
[1743731888635,0.558556,1790.3,1788.7,0.7899]
[1743731888824,0.045,1790.9,1790.7,5.58411]
[1743731889010,0.045,1790.9,1790.5,5.5848]
[1743731889214,0.045,1790.9,1790.1,0.05585112]
[1743731889539,5.58743,1789.8,1789.1,5.58913]
[1743731889845,3.0,1790.6,1789.0,0.8159]
[1743731890145,5.58762,1789.7,1789.0,0.8159]
[1743731890305,5.58526,1790.5,1789.0,0.8159]
[1743731890509,5.58721,1789.9,1789.0,0.8159]
[1743731890713,3.0,1790.0,1789.0,0.8159]
[1743731890943,8.58752,1789.7,1788.8,5.59019]
[1743731891236,5.58458,1790.7,1789.1,0.8159]
[1743731891452,5.58591,1790.3,1789.7,5.58733]
[1743731891600,5.58638,1790.1,1789.5,5.58795]
[1743731892000,0.7735,1790.1,1788.9,43.621]
[1743731892302,0.7735,1790.1,1789.6,5.58758]
[1743731892509,0.7735,1790.6,1790.3,5.58542]
[1743731892739,13.145,1790.9,1790.1,5.58601]
[1743731892936,3.0,1790.8,1790.1,5.58625]
[1743731893103,5.58684,1790.0,1789.4,5.58829]
[1743731893303,0.558684,1789.9,1788.1,0.05]
[1743731893517,5.5906,1788.8,1788.2,5.59197]
[1743731893717,5.5906,1788.8,1788.1,0.05]
[1743731893718,6.7835,1788.8,1788.1,0.05]
[1743731893920,0.7735,1788.1,1786.5,6.4132]
[1743731894103,1.15085,1788.1,1787.5,5.59426]
[1743731894306,0.7735,1788.9,1787.6,5.59409]
[1743731894501,0.7735,1789.4,1787.8,5.59346]
[1743731894728,0.558684,1789.9,1788.5,5.59127]
[1743731894914,5.58872,1789.4,1788.4,0.8159]
[1743731895116,3.0,1789.5,1788.4,6.40748]
[1743731895328,5.58889,1789.3,1788.4,6.4072]
[1743731895518,5.5893,1789.2,1788.6,5.59068]
[1743731895714,5.5914,1788.5,1787.9,6.40889]
[1743731895917,5.59443,1787.5,1787.1,0.05]
[1743731896118,3.0,1787.9,1787.1,0.05]
[1743731896445,5.59628,1786.9,1786.1,0.055]
[1743731896629,3.7882,1787.4,1786.2,5.59847]
[1743731896940,0.7882,1786.7,1786.1,8e-07]
[1743731897139,5.59811,1786.4,1786.1,8e-07]
[1743731897340,5.5978,1786.5,1786.1,8e-07]
[1743731897506,0.7882,1786.7,1786.1,8e-07]
[1743731897708,3.7882,1787.2,1786.1,8e-07]
[1743731897903,3.0,1787.0,1786.1,8e-07]
[1743731898115,0.7882,1787.2,1786.1,8e-07]
[1743731898342,5.59587,1787.1,1786.4,5.59762]
[1743731898527,8.59847,1786.2,1786.1,8e-07]
[1743731898729,5.60085,1785.5,1784.8,0.8257]
[1743731899041,8.59879,1786.1,1784.4,0.8257]
[1743731899042,5.59906,1786.1,1784.4,0.8257]
[1743731899241,0.7882,1786.7,1785.6,5.60021]
[1743731899545,3.0,1786.2,1785.3,5.60113]
[1743731899706,3.0,1786.2,1784.1,43.687]
[1743731899707,0.55,1785.9,1784.1,0.05]
[1743731899907,9.38981,1785.2,1784.1,5.65482]
[1743731900107,8.60475,1784.2,1783.3,0.8257]
[1743731900308,8.60475,1784.2,1782.4,43.637]
[1743731900309,0.7882,1784.0,1782.8,5.60896]
[1743731900533,0.7882,1784.5,1782.9,0.05608859]
[1743731900706,0.7882,1784.5,1782.5,0.8257]
[1743731900707,3.0,1784.0,1782.5,0.8257]
[1743731900916,0.55,1784.4,1782.5,0.8257]
[1743731901248,5.60291,1784.8,1783.4,5.60726]
[1743731901555,5.60411,1784.5,1783.8,5.60594]
[1743731901774,0.560291,1784.7,1782.8,0.8257]
[1743731901775,5.60349,1784.6,1782.8,0.8257]
[1743731901906,5.60349,1784.6,1781.3,3.40605857]
[1743731901907,5.60887,1782.9,1782.2,5.61104]
[1743731902217,5.60901,1782.9,1781.6,5.61293]
[1743731902417,0.7882,1783.4,1781.7,0.561293]
[1743731902617,0.7882,1784.6,1781.9,7.20367327]
[1743731902820,5.60399,1784.5,1783.0,3.0]
[1743731903116,0.05607992,1784.4,1783.8,5.60595]
[1743731903333,0.05607992,1784.4,1783.0,43.672]
[1743731903659,0.05607992,1784.4,1783.2,5.60789]
[1743731903818,0.05607992,1784.4,1783.6,5.60654]
[1743731904016,5.60412,1784.4,1782.1,0.1]
[1743731904240,0.8156,1784.1,1783.0,5.60825]
[1743731904442,8.60633,1783.7,1781.4,6.09604284]
[1743731904649,0.8156,1783.0,1782.0,5.61166]
[1743731904807,0.8156,1783.0,1781.2,4.56697658]
[1743731904808,0.8156,1781.3,1781.2,4.56697658]
[1743731905008,0.87167992,1781.3,1781.2,4.56697658]
[1743731905208,0.05607992,1781.8,1781.2,4.69474097]
[1743731905445,0.8156,1782.4,1781.2,4.69474097]
[1743731905446,0.05607992,1782.3,1781.2,4.56697658]
[1743731905748,0.8156,1784.1,1782.7,0.8026]
[1743731905959,0.8156,1784.1,1782.8,5.60915]
[1743731906244,5.6033,1784.7,1782.8,5.60915]
[1743731906418,0.2918298,1785.1,1784.5,5.60375]
[1743731906618,5.59973,1785.8,1784.3,5.60423]
[1743731906817,5.59973,1785.8,1783.4,5.60711]
[1743731906818,0.1,1785.1,1783.4,5.60711]
[1743731907019,43.696,1785.0,1783.8,5.60584]
[1743731907234,5.60556,1784.0,1782.9,5.60883]
[1743731907434,0.29171106,1785.4,1782.9,0.55]
[1743731907633,44.9808981,1785.7,1785.3,5.60108]
[1743731907634,0.559973,1785.7,1785.3,5.60108]
[1743731907960,0.29164862,1785.5,1784.3,44.5126]
[1743731908159,6.01,1786.8,1784.3,47.5126]
[1743731908363,5.59755,1786.5,1785.2,5.60146]
[1743731908535,5.59755,1786.5,1784.8,5.60277]
[1743731908536,5.60004,1785.7,1784.4,5.60397]
[1743731908735,5.6015,1785.3,1783.7,0.8026]
[1743731908938,43.71,1785.8,1783.8,5.606]
[1743731908939,5.60222,1785.1,1783.8,5.606]
[1743731909153,3.0,1784.6,1783.0,0.8026]
[1743731909458,3.0,1784.6,1782.4,0.8026]
[1743731909459,0.8156,1783.7,1782.4,0.8026]
[1743731909961,5.60499,1784.2,1782.9,5.60879]
[1743731910259,0.8156,1784.3,1782.6,43.71]
[1743731910461,0.55,1784.2,1782.4,0.8026]
[1743731910663,11.647837,1780.8,1780.5,0.54095247]
[1743731910824,6.16766,1780.1,1780.0,0.37681348]
[1743731911023,1.6914,1780.2,1780.0,0.37681348]
[1743731911226,1.9803837,1780.7,1780.0,0.37681348]
[1743731911526,0.8156,1781.4,1780.5,5.61613]
[1743731911726,5.61153,1782.1,1780.5,43.724]
[1743731911964,0.41582499,1782.9,1780.8,5.61545]
[1743731912126,0.55,1782.8,1780.7,0.55]
[1743731912326,5.9000018,1782.9,1780.2,0.0561359]
[1743731912542,0.55,1782.7,1780.2,4.51442508]
[1743731912760,5.60774,1783.3,1780.4,3.1]
[1743731913063,0.29096936,1783.0,1781.2,3.0]
[1743731913249,43.724,1784.0,1780.7,0.65]
[1743731913250,0.05,1782.9,1781.9,0.55]
[1743731913451,0.05,1782.9,1781.3,0.8026]
[1743731913746,0.05,1782.9,1781.4,0.55]
[1743731913946,5.61038,1782.5,1781.8,5.61214]
[1743731914148,5.61206,1781.9,1780.3,5.61703]
[1743731914364,3.0,1782.3,1781.3,5.61365]
[1743731914547,0.85,1782.2,1781.1,5.61427]
[1743731914861,5.61134,1782.2,1781.0,5.61458]
[1743731915165,5.61549,1780.8,1780.0,0.37681348]
[1743731915367,5.61693,1780.4,1780.0,0.37681348]
[1743731915539,5.61513,1781.0,1780.1,5.61766]
[1743731915731,5.61513,1781.0,1780.0,0.37681348]
[1743731915732,5.61766,1780.1,1780.0,0.37681348]
[1743731915929,5.61835,1779.9,1779.7,0.55]
[1743731916162,0.8156,1780.4,1779.7,0.55]
[1743731916541,0.8156,1780.4,1778.7,0.005]
[1743731916542,0.0534,1779.7,1778.7,1e-05]
[1743731916866,0.35874,1779.7,1778.7,1e-05]
[1743731917036,0.1,1781.2,1778.7,1e-05]
[1743731917241,7.20367327,1781.0,1778.7,1e-05]
[1743731917432,6.68682324,1781.1,1778.8,43.776]
[1743731917629,7.10367327,1780.8,1778.7,1e-05]
[1743731917851,8.62176,1778.8,1778.7,1e-05]
[1743731918063,5.62069,1779.2,1778.7,1e-05]
[1743731918257,3.0,1779.3,1778.7,1e-05]
[1743731918258,5.61958,1779.5,1778.8,5.62154]
[1743731918499,6.44811,1779.8,1778.7,1e-05]
[1743731918623,0.8292,1780.4,1778.9,0.7503]
[1743731918829,5.61987,1779.4,1778.7,1e-05]
[1743731919025,0.0534,1778.8,1778.1,0.05]
[1743731919251,0.0534,1779.5,1778.4,5.62275]
[1743731919465,0.0534,1780.0,1778.3,5.62314]
[1743731919628,5.6186,1779.8,1778.1,0.05]
[1743731919829,5.62208,1778.7,1778.1,1e-05]
[1743731920061,5.67618,1778.5,1777.2,5.62682]
[1743731920262,0.8292,1779.6,1777.9,5.62461]
[1743731920437,0.8292,1780.1,1778.4,5.62273]
[1743731920638,0.8292,1780.1,1778.5,0.05621712]
[1743731920862,0.8292,1780.1,1779.3,5.62002]
[1743731921072,0.8292,1780.6,1779.2,5.6205]
[1743731921284,0.8292,1780.6,1779.7,5.61874]
[1743731921488,0.8292,1780.6,1779.3,0.56205]
[1743731921641,0.8292,1781.2,1779.3,6.18202]
[1743731921985,0.8292,1781.2,1779.4,5.61983]
[1743731922182,5.61658,1780.5,1779.2,0.7503]
[1743731922389,5.61622,1780.6,1780.1,5.61765]
[1743731922550,6.44182,1781.7,1780.2,0.05617458]
[1743731922737,5.61446,1781.2,1780.5,5.61619]
[1743731923066,5.61339,1781.5,1779.8,0.7503]
[1743731923267,5.61339,1781.5,1778.5,0.7503]
[1743731923268,0.8292,1780.8,1778.5,0.7503]
[1743731923587,5.61753,1780.2,1778.8,5.62176]
[1743731923744,5.61753,1780.2,1779.4,5.61968]
[1743731923745,5.61816,1780.0,1779.4,5.61968]
[1743731924082,5.61849,1779.9,1779.3,5.62001]
[1743731924279,0.8292,1779.7,1778.9,5.62118]
[1743731924576,0.8292,1779.7,1778.0,0.7503]
[1743731924789,0.8292,1779.1,1776.8,0.7503]
[1743731924968,0.8292,1779.1,1776.1,0.05]
[1743731924969,0.8292,1777.5,1776.1,0.05]
[1743731925278,3.0,1776.7,1775.3,0.29270533]
[1743731925484,0.3,1776.6,1775.9,5.6307]
[1743731925688,5.62834,1776.8,1775.2,6.38346]
[1743731925980,5.6283,1776.8,1776.2,6.38026]
[1743731926183,0.55,1777.3,1775.3,0.1170558]
[1743731926348,0.8292,1777.4,1776.6,5.62867]
[1743731926531,6.13767116,1778.8,1776.5,43.848]
[1743731926532,0.8292,1777.9,1776.5,43.848]
[1743731926732,0.8292,1778.4,1776.6,4.49765203]
[1743731927087,0.8292,1778.4,1778.1,5.62375]
[1743731927266,6.45239,1778.4,1776.8,5.62809]
[1743731927581,3.0,1777.9,1776.9,0.12641945]
[1743731927783,0.05,1777.9,1776.9,0.12641945]
[1743731927948,0.05,1777.9,1777.8,5.62492]
[1743731928153,0.05,1777.9,1777.0,0.90784368]
[1743731928371,0.05,1777.9,1775.8,0.7503]
[1743731928372,5.62524,1777.7,1775.8,0.7503]
[1743731928685,0.0533,1776.1,1775.1,0.05]
[1743731928847,5.6322,1775.6,1775.1,0.05]
[1743731929046,0.0533,1775.1,1774.5,4.70066756]
[1743731929279,3.55,1777.1,1774.5,4.70066756]
[1743731929280,0.0483,1776.7,1776.0,5.63031]
[1743731929493,0.0483,1776.7,1774.7,5.63458]
[1743731929494,5.63263,1775.4,1774.7,5.63458]
[1743731929634,5.63116,1775.9,1775.2,5.63299]
[1743731929834,5.62587,1777.5,1776.1,5.63014]
[1743731930033,3.0,1776.1,1775.3,5.6327]
[1743731930261,43.864,1777.2,1774.9,0.7503]
[1743731930484,3.06965183,1777.1,1774.9,0.7503]
[1743731930687,9.18e-06,1776.0,1775.9,5.63065]
[1743731930838,5.67466,1777.9,1775.9,0.7503]
[1743731931032,0.05,1777.9,1776.0,0.7503]
[1743731931232,0.05,1777.9,1777.4,5.626]
[1743731931439,0.05,1777.9,1777.6,5.62533]
[1743731931649,5.62509,1777.8,1777.2,5.62666]
[1743731931859,5.6289,1776.6,1775.4,5.63253]
[1743731932084,5.6292,1776.5,1774.6,43.878]
[1743731932333,5.6337,1775.1,1774.5,4.70066756]
[1743731932536,5.63624,1774.3,1774.1,0.05]
[1743731932785,5.63443,1774.8,1774.1,5.68649]
[1743731933084,0.8292,1774.9,1774.1,0.05]
[1743731933237,0.8292,1774.9,1774.0,0.00564]
[1743731933582,0.0983,1774.0,1772.9,5.64018]
[1743731933769,5.63589,1774.4,1772.9,5.64044]
[1743731933970,5.63666,1774.1,1773.4,5.63859]
[1743731934146,0.0983,1774.5,1772.7,43.9344]
[1743731934345,0.0983,1774.5,1772.8,0.05638795]
[1743731934545,5.63851,1773.6,1772.7,0.0564]
[1743731934869,5.64079,1772.8,1772.7,0.0564]
[1743731935073,5.64054,1772.9,1772.7,1e-05]
[1743731935273,5.63824,1773.6,1772.7,1e-05]
[1743731935434,5.73631,1773.7,1772.7,1e-05]
[1743731935772,0.0983,1775.1,1773.2,0.7641]
[1743731935958,5.63178,1775.7,1773.5,0.7641]
[1743731936157,0.05,1775.9,1775.4,5.63241]
[1743731936360,0.05,1775.9,1774.2,0.55]
[1743731936361,0.05,1775.9,1775.6,5.63188]
[1743731936544,0.05,1775.9,1774.7,43.912]
[1743731936545,1e-05,1775.9,1775.8,5.63126]
[1743731937548,1e-05,1775.9,1774.7,0.7641]
[1743731937763,1e-05,1775.9,1774.8,5.63443]
[1743731937992,1e-05,1775.9,1773.7,0.7641]
[1743731938195,0.7915,1775.4,1773.9,5.637]
[1743731938337,5.63114,1775.9,1774.0,0.5637]
[1743731938538,5.63348,1775.2,1774.5,5.63514]
[1743731938885,5.63348,1775.2,1773.7,0.7641]
[1743731938886,5.63096,1775.9,1775.3,5.63272]
[1743731939092,3.7915,1775.1,1773.5,5.6385]
[1743731939279,0.7915,1775.1,1773.1,0.7641]
[1743731939587,0.7915,1775.1,1772.1,40.589]
[1743731939588,0.7915,1775.6,1774.1,0.7641]
[1743731939751,5.63221,1775.5,1773.6,0.7641]
[1743731939955,0.7915,1775.6,1774.1,3.0]
[1743731940157,1e-05,1775.9,1775.0,5.63374]
[1743731940356,1e-05,1775.9,1774.7,0.7641]
[1743731940576,0.05,1776.9,1774.5,3.0]
[1743731940577,0.05,1776.9,1775.8,0.7641]
[1743731940796,0.05,1776.9,1775.9,3.0]
[1743731941143,0.05,1776.9,1776.4,5.62907]
[1743731941297,0.05,1776.9,1776.5,5.6289]
[1743731941498,0.05,1776.9,1775.8,0.7641]
[1743731941499,5.62894,1776.6,1775.8,5.63116]
[1743731941805,40.556,1776.5,1773.9,0.7641]
[1743731941983,5.6319,1775.6,1775.0,5.63374]
[1743731942186,0.7915,1776.2,1773.3,0.7641]
[1743731942385,5.63237,1775.5,1774.0,5.63674]
[1743731942550,5.63092,1776.0,1774.0,40.556]
[1743731942910,0.7915,1776.2,1774.9,3.0]
[1743731943068,0.05,1776.9,1774.7,0.7641]
[1743731943069,0.05,1776.9,1775.1,3.0]
[1743731943253,0.05,1776.9,1776.8,5.62809]
[1743731943602,1e-05,1776.9,1776.8,5.62809]
[1743731943754,1e-05,1776.9,1776.8,8.68435926]
[1743731943953,1e-05,1776.9,1776.8,5.68435926]
[1743731944269,1e-05,1777.9,1777.0,0.55]
[1743731944463,1e-05,1777.9,1777.8,5.62492]
[1743731944873,5.62526,1777.7,1776.9,0.7641]
[1743731945048,5.62526,1777.7,1776.8,5.62805]
[1743731945049,1e-05,1777.9,1776.8,0.05626004]
[1743731945307,1e-05,1777.9,1776.9,5.62749]
[1743731945452,0.7915,1777.8,1776.4,0.7641]
[1743731945657,0.7915,1777.8,1777.2,5.62667]
[1743731945851,3.0,1777.4,1775.8,40.558]
[1743731946067,3.0,1777.4,1775.0,1.069596]
[1743731946068,5.62746,1777.0,1775.0,1.069596]
[1743731946267,0.3,1777.3,1775.0,1.069596]
[1743731946268,0.7915,1776.2,1775.0,1.069596]
[1743731946503,0.7915,1776.8,1775.0,1.069596]
[1743731946806,0.7915,1776.8,1775.1,40.66130706]
[1743731947004,5.62841,1776.7,1776.1,5.63002]
[1743731947151,5.62841,1776.7,1775.2,0.05630759]
[1743731947495,6.42101,1776.4,1775.7,5.63139]
[1743731947649,0.55,1776.3,1775.3,5.6326]
[1743731947852,5.63256,1775.4,1775.1,0.05]
[1743731948085,5.63256,1775.4,1773.8,5.63739]
[1743731948086,5.63606,1774.3,1773.8,5.63739]
[1743731948284,5.63606,1774.3,1773.1,5.68977]
[1743731948285,8.73464,1774.2,1773.1,0.05]
[1743731948452,0.0983,1774.2,1773.1,0.05]
[1743731948793,5.72975,1775.8,1774.5,3.0]
[1743731948975,0.0983,1777.2,1775.7,5.63152]
[1743731949184,0.0983,1777.2,1775.9,5.63094]
[1743731949356,0.805,1777.7,1775.8,0.563152]
[1743731949686,0.805,1777.7,1775.9,5.63094]
[1743731949852,1e-05,1777.9,1776.9,5.62777]
[1743731950055,1e-05,1777.9,1777.8,6.44832]
[1743731950254,1e-05,1777.9,1777.1,0.8234]
[1743731950480,1e-05,1777.9,1776.4,0.8234]
[1743731950695,1e-05,1777.9,1777.8,5.62492]
[1743731950862,1e-05,1777.9,1776.7,0.8234]
[1743731951193,1e-05,1777.9,1777.8,5.62492]
[1743731951353,0.805,1777.8,1776.7,0.8234]
[1743731951689,0.805,1777.8,1775.8,40.561]
[1743731951889,1e-05,1777.9,1776.0,0.8234]
[1743731952091,1e-05,1777.9,1776.1,3.0]
[1743731952294,5.62678,1777.3,1776.0,0.8234]
[1743731952612,5.62682,1777.2,1776.0,5.63036]
[1743731952785,0.805,1777.8,1776.6,0.8234]
[1743731952955,1e-05,1777.9,1776.6,0.8234]
[1743731953155,1e-05,1777.9,1776.0,0.8234]
[1743731953355,0.805,1777.7,1775.5,0.8234]
[1743731953562,0.805,1777.7,1776.9,5.62763]
[1743731953770,6.43028,1777.7,1776.9,5.62757]
[1743731953973,6.43028,1777.7,1776.5,5.62888]
[1743731953974,5.62667,1777.3,1776.5,5.62888]
[1743731954161,5.62586,1777.6,1776.8,5.62783]
[1743731954371,0.805,1777.7,1776.0,0.05628453]
[1743731954573,0.805,1777.7,1775.9,0.8234]
[1743731954894,5.62669,1777.3,1776.2,5.62999]
[1743731955104,5.62669,1777.3,1775.9,0.8234]
[1743731955105,5.62638,1777.4,1776.0,5.63063]
[1743731955265,5.62687,1777.2,1776.0,0.05628347]
[1743731955592,3.0,1777.4,1776.2,5.62981]
[1743731955796,1e-05,1777.9,1776.8,0.8234]
[1743731956148,1e-05,1777.9,1777.8,6.44832]
[1743731956418,5.9122107,1779.5,1777.9,3.0]
[1743731956419,0.805,1779.2,1777.9,3.0]
[1743731956559,5.6191,1779.7,1778.8,5.62176]
[1743731956896,0.855,1779.9,1778.8,46.99216]
[1743731956897,1e-05,1778.9,1778.8,46.99216]
[1743731957066,1e-05,1778.9,1778.8,46.16876]
[1743731957572,0.80501,1778.9,1777.4,0.8234]
[1743731957769,5.62202,1778.8,1778.2,5.62364]
[1743731957997,1e-05,1778.9,1777.4,0.8234]
[1743731958179,1e-05,1778.9,1776.9,1.08056812]
[1743731958180,0.805,1778.5,1776.9,1.90396812]
[1743731958378,5.62564,1777.6,1776.9,0.8234]
[1743731958690,5.62539,1777.7,1777.1,5.62687]
[1743731959010,5.62539,1777.7,1776.5,40.547]
[1743731959011,5.62602,1777.5,1776.9,5.62761]
[1743731959320,3.805,1778.1,1776.2,5.62991]
[1743731959321,0.805,1777.1,1776.2,5.62991]
[1743731959611,5.62798,1776.9,1776.1,0.05]
[1743731959763,3.805,1777.1,1776.1,0.05]
[1743731959960,5.62999,1776.2,1776.1,0.05]
[1743731960319,5.63316,1775.2,1775.1,0.055]
[1743731960460,8.73146,1775.2,1775.1,1e-05]
[1743731960663,5.73146,1775.2,1775.1,1e-05]
[1743731960891,5.63582,1774.4,1774.1,0.05]
[1743731961095,5.63348,1775.1,1774.1,0.05]
[1743731961096,5.63372,1775.1,1774.1,0.05]
[1743731961321,5.63563,1774.5,1774.1,0.05]
[1743731961530,1.234738,1775.2,1774.1,0.05]
[1743731961738,0.0983,1775.2,1774.1,0.05]
[1743731962095,0.805,1776.4,1774.5,0.8234]
[1743731962299,5.63007,1776.2,1774.8,5.63443]
[1743731962538,5.63057,1776.1,1774.6,40.552]
[1743731962720,5.63083,1776.0,1775.2,5.63309]
[1743731962925,0.805,1776.4,1774.8,3.0]
[1743731963123,3.27212352,1776.6,1775.5,5.63221]
[1743731963455,3.27212352,1776.6,1776.1,5.63008]
[1743731963611,3.27212352,1776.6,1776.4,5.62906]
[1743731963935,3.27212352,1776.6,1776.5,5.62904]
[1743731964142,1e-05,1776.9,1776.8,5.62809]
[1743731964304,0.05,1777.9,1776.8,5.62809]
[1743731964305,0.05,1777.9,1777.8,5.62492]
[1743731964843,1e-05,1777.9,1777.8,8.68116527]
[1743731965012,1e-05,1778.9,1778.8,5.62176]
[1743731965207,5.61594,1780.7,1778.7,5.62178]
[1743731965208,5.61692,1780.4,1779.0,5.62113]
[1743731965529,5.61692,1780.4,1779.2,5.6202]
[1743731965530,5.61678,1780.4,1779.2,5.6202]
[1743731965724,0.7925,1780.6,1779.5,5.6195]
[1743731966012,0.7925,1780.6,1779.2,6.18225]
[1743731966325,0.05,1780.9,1779.3,1.43068623]
[1743731966525,0.05,1780.9,1779.5,0.55]
[1743731966727,0.05,1780.9,1779.8,1.3745]
[1743731966927,0.05,1780.9,1780.0,3.55]
[1743731967127,16.48531163,1781.7,1780.4,0.55]
[1743731967296,0.05,1781.9,1780.7,0.8245]
[1743731967500,0.05,1781.9,1781.2,3.0]
[1743731967909,0.05,1781.9,1781.3,0.55]
[1743731968111,0.05,1781.9,1781.4,40.515]
[1743731968627,0.05,1781.9,1781.5,0.55]
[1743731968808,0.05,1781.9,1781.5,3.55]
[1743731969006,0.05,1781.9,1781.4,40.515]
[1743731969206,0.05,1781.9,1781.5,0.55]
[1743731969532,0.05,1782.9,1781.7,0.55]
[1743731970098,0.05,1782.9,1781.9,0.55]
[1743731970429,0.615876,1782.9,1782.1,0.55]
[1743731970632,0.05,1782.9,1781.7,0.55]
[1743731971006,5.60915,1782.8,1781.6,0.8245]
[1743731971215,5.61106,1782.2,1781.6,0.8245]
[1743731971416,0.7546,1782.6,1780.8,0.8245]
[1743731971615,5.61079,1782.3,1780.9,0.55]
[1743731971815,5.60992,1782.6,1780.9,0.65]
[1743731972018,0.05,1782.9,1780.9,0.55]